Cogmind - Beta 10.2 @@@ ROGUE MODE // 2020.12.13 @ 09:52:13 Player: Demise Result: Destroyed by D-53 Grenadier with Mini Grenade Launcher Performance ------------- Evolutions (0) 0 Regions Visited (2) 400 Robots Destroyed (27) 135 Value Destroyed (530) 530 Prototype IDs (0) 0 Alien Tech Used (0) 0 Bonus (0) 0 TOTAL SCORE: 1065 Bonus ------- None Cogmind --------- Core Integrity 0/250 Matter 190/300 Energy 79/100 System Corruption 1% Temperature Cool (0) Movement Core (400) Ox7 Location -10/Mines Parts ------- > --- POWER (1) -------- (None) > --- PROPULSION (2) --- (None) > --- UTILITY (2) ------ Large Storage Unit Core Shielding > --- WEAPON (2) ------- Autogun Autogun > --- INVENTORY (10) --- Armor Integrity Analyzer Core Shielding Core Shielding Medium Armor Plating Medium Armor Plating Medium Armor Plating Medium Armor Plating Datajack Mining Laser Peak State ------------ > --- POWER ------------ Ion Engine > --- PROPULSION ------- Light Treads Light Treads > --- UTILITY ---------- Large Storage Unit Large Storage Unit > --- WEAPON ----------- Autogun Autogun > --- INVENTORY -------- High-capacity Matter Pod Improved Sensor Array Signal Interpreter Core Shielding Core Shielding Core Shielding Medium Armor Plating Medium Armor Plating Assault Rifle Assault Rifle Assault Rifle Light Assault Rifle Light Assault Rifle Mini Grenade Launcher Datajack Mining Laser [Rating: 11] Favorites ----------- Power Ion Engine Engine Ion Engine Power Core Light Nuclear Core Propulsion Light Treads Treads Light Treads Leg Aluminum Leg Wheel Compact Wheel Utility Large Storage Unit Device Improved Terrain Scanner Storage Large Storage Unit Protection Propulsion Shielding Weapon Assault Rifle Energy Gun Small Laser Energy Cannon Beam Cannon Ballistic Gun Assault Rifle Launcher Mini Grenade Launcher Special Weapon Mining Laser Build | -11 -10 -10 ------- Run | Scr Mat Min Slots Evolved . | . . . Power . | . . . Propulsion . | . . . Utility . | . . . Weapon . | . . . Parts Attached 35 | 3 25 7 Power 2 | . 2 . Engine 1 | . 1 . Core 1 | . 1 . Reactor . | . . . Propulsion 7 | 2 5 . Treads 5 | . 5 . Leg . | . . . Wheel 2 | 2 . . Hover . | . . . Flight . | . . . Utility 6 | 1 4 1 Device 1 | 1 . . Storage 3 | . 3 . Processor . | . . . Hackware . | . . . Protection 2 | . 1 1 Artifact . | . . . Weapon 20 | . 14 6 Energy Gun 3 | . 3 . Energy Cannon 1 | . 1 . Ballistic Gun 12 | . 7 5 Ballistic Cannon . | . . . Launcher 1 | . . 1 Special Weapon 3 | . 3 . Impact Weapon . | . . . Slashing Weapon . | . . . Piercing Weapon . | . . . Special Melee Weapon . | . . . Unidentified Prototypes . | . . . Parts Lost 12 | . 3 9 Power 2 | . 1 1 Propulsion 2 | . . 2 Utility 1 | . 1 . Weapon 7 | . 1 6 Highest Loss Streak 9 | . 2 9 Average Slot Usage (%) 97 | . 97 97 Engine 9 | . 9 13 Core 3 | . 4 . Treads 23 | . 22 26 Wheel 3 | . 4 . Device 3 | . 3 . Storage 23 | . 22 27 Energy Gun 6 | . 8 . Energy Cannon 1 | . 1 . Ballistic Gun 18 | . 16 28 Naked Turns . | . . . Heaviest Build 43 | 14 43 43 Greatest Support 40 | 32 40 40 Greatest Overweight (x) 1 | . 1 1 Average Overweight (x) . | . . 1 Largest Inventory Capacity 16 | 6 16 16 Average Capacity 12 | 6 12 15 Most Carried 16 | 6 16 16 Average Carried 11 | 5 10 15 Final Capacity 16 | 6 16 10 Final Carried 16 | 6 16 9 Class Distribution -------------------- 100% | Mutant Dominant Class ---------------- Mutant | -10/Materials Mutant | -10/Mines Resources | -11 -10 -10 ----------- Run | Scr Mat Min Matter Collected 952 | 239 642 71 Remotely . | . . . Salvage Created 961 | 85 580 296 Parts 51 | 6 32 13 Haulers Intercepted . | . . . Recyclers Shooed 2 | . 1 1 Parts Field Recycled . | . . . Retrieved Matter . | . . . Parts Self-Destructed . | . . . Prevented . | . . . Kills | -11 -10 -10 ------- Run | Scr Mat Min Combat Hostiles Destroyed 17 | . 15 2 Melee 1 | . 1 . Guns 16 | . 14 2 Classes Destroyed 7 | 2 3 2 Worker 2 | . . 2 Builder 1 | . . 1 Tunneler 1 | 1 . . Recycler 4 | 1 1 2 Watcher 2 | . 2 . Swarmer 6 | . 6 . Grunt 11 | . 9 2 Best Kill Streak 5 | 2 5 2 Combat Bots Only 5 | . 5 2 Max Kills in Single Turn 1 | 1 1 1 Gunslinging . | . . . Exploded . | . . . Melee 1 | . 1 . Uniques/NPCs Destroyed . | . . . Combat | -11 -10 -10 -------- Run | Scr Mat Min Damage Taken 2014 | . 812 1202 Core 265 | . 64 201 Absorbed by Shields . | . . . Core Remaining (%) 100 | 100 . . Volleys Fired 108 | 3 83 22 Largest 2 | 2 2 2 Hottest 100 | 70 100 46 Shots Fired 201 | 6 153 42 Gun 189 | 6 141 42 Cannon . | . . . Launcher . | . . . Special 12 | . 12 . Kinetic 126 | 3 81 42 Thermal 75 | 3 72 . Explosive . | . . . Electromagnetic . | . . . Robot Hit Streak 12 | 2 12 10 Robot Miss Streak 4 | 1 4 3 Penetration Max . | . . . Secondary Targets 1 | . 1 . Max Gunslinging Chain 1 | . 1 . Shots Hit Robots 116 | 3 87 26 Core Hits 44 | 3 31 10 Critical Hits 1 | . . 1 Critical Kills 1 | . . 1 Critical Parts Destroyed . | . . . Melee Attacks . | . . . Impact . | . . . Slashing . | . . . Piercing . | . . . Sneak Attacks . | . . . Combat Hostiles . | . . . Follow-up Attacks . | . . . Damage Inflicted 1392 | 37 982 373 Guns 1388 | 37 978 373 Cannons . | . . . Explosions . | . . . Melee . | . . . Ramming 4 | . 4 . Kinetic 907 | . 534 373 Thermal 481 | 37 444 . Explosive . | . . . Electromagnetic . | . . . Impact . | . . . Slashing . | . . . Piercing . | . . . Highest Corruption 1 | . 1 1 Average Corruption 1 | . 1 1 Corruption Purged . | . . . Effects 5 | . 2 3 Message Errors 1 | . . 1 Targeting Errors 3 | . 1 2 Weapon Failures 1 | . 1 . Overload Shots . | . . . Overflow Damage . | . . . Projectiles . | . . . Explosions . | . . . Melee . | . . . Knockbacks . | . . . Impact . | . . . Kinetic . | . . . Secondary . | . . . Self-Inflicted Damage . | . . . Shots . | . . . Rammed 1 | . 1 . Targets Rammed 2 | . 2 . Kicked . | . . . Crushed 1 | . 1 . Highest Temperature 153 | 38 153 12 Average Temperature 32 | 16 35 4 Received Heat Transfer 318 | . 318 . Siege Activations . | . . . Robots Corrupted . | . . . Combat Hostiles . | . . . Parts Fried . | . . . Impact Corruptions . | . . . Robots Melted . | . . . Combat Hostiles . | . . . Parts Melted 4 | . 4 . Heat Transferred 1216 | 111 1105 . Parts Sabotaged . | . . . Parts Stolen . | . . . Parts Stripped . | . . . Power Chain Reactions . | . . . Missiles Intercepted . | . . . Alert | -11 -10 -10 ------- Run | Scr Mat Min Peak Influence 182 | 10 182 98 Initial 28 | . 6 28 Average 81 | 8 88 61 Maximum Alert Level . | . . . Low Security (%) 100 | 100 100 100 Level 1 . | . . . Level 2 . | . . . Level 3 . | . . . Level 4 . | . . . Level 5 . | . . . High Security . | . . . Max Security . | . . . Squads Dispatched 4 | . 4 . Investigation 3 | . 3 . Extermination . | . . . Reinforcement 1 | . 1 . Assault . | . . . Garrison . | . . . Intercept . | . . . Construction Impeded . | . . . Haulers Reinforced . | . . . Stealth | -11 -10 -10 --------- Run | Scr Mat Min Distress Signals 1 | . 1 . Communications Jammed . | . . . Distress Signals . | . . . Times Spotted 33 | . 29 4 Peak Tracking Total 6 | . 6 2 Tactical Retreats 2 | . 2 . Traps | -11 -10 -10 ------- Run | Scr Mat Min Traps Triggered 2 | . 2 . Indirectly . | . . . Trap Hack Attempts . | . . . Triggered . | . . . Disarmed . | . . . Reprogrammed . | . . . Reused . | . . . Traps Extracted . | . . . Installed . | . . . Triggered . | . . . Machines | -11 -10 -10 ---------- Run | Scr Mat Min Machines Disabled . | . . . Max in Single Turn . | . . . Machines Sabotaged . | . . . Garrisons Compromised . | . . . Overloaded Fab Kills . | . . . Fab Network Shutdowns . | . . . Hacking | -11 -10 -10 --------- Run | Scr Mat Min Machines Accessed 10 | . 10 . Terminals 7 | . 7 . Fabricators . | . . . Repair Stations 1 | . 1 . Recycling Units 2 | . 2 . Scanalyzers . | . . . Garrison Access . | . . . Total Hacks 54 | . 54 . Successful 42 | . 42 . Failed 12 | . 12 . Catastrophic . | . . . Database Lockouts . | . . . Manual 29 | . 29 . Terminals 36 | . 36 . Fabricators . | . . . Repair Stations 12 | . 12 . Recycling Units 6 | . 6 . Scanalyzers . | . . . Garrison Access . | . . . Terminal Hacks 17 | . 17 . Part Schematic 3 | . 3 . Robot Analysis 5 | . 5 . Branch Access Points 1 | . 1 . Terminal Index 1 | . 1 . Locate Traps 4 | . 4 . Hauler Manifests 1 | . 1 . Zone Layout 2 | . 2 . Fabricator Hacks . | . . . Repair Station Hacks 12 | . 12 . Scan Component 6 | . 6 . Repair 6 | . 6 . Recycling Unit Hacks 4 | . 4 . Process 1 | . 1 . Report Inventory 2 | . 2 . Retrieve Components 1 | . 1 . Scanalyzer . | . . . Garrison Access Hacks . | . . . Unauthorized Hacks 9 | . 9 . Terminals 8 | . 8 . Track 1 | . 1 . Assimilate 2 | . 2 . Botnet 4 | . 4 . Operators 1 | . 1 . Fabricators . | . . . Repair Stations . | . . . Recycling Units 1 | . 1 . Mask 1 | . 1 . Scanalyzers . | . . . Garrison Access . | . . . Data Cores Recovered . | . . . Used . | . . . Hacking Detections 10 | . 10 . Full Trace Events 2 | . 2 . Feedback Events 1 | . 1 . Corruption 1 | . 1 . Feedback Blocked . | . . . Robot Schematics Acquired . | . . . Robots Built . | . . . Matter . | . . . Time . | . . . Total Robot Build Rating . | . . . Part Schematics Acquired 3 | . 3 . Parts Built . | . . . Matter . | . . . Time . | . . . Total Part Build Rating . | . . . Parts Repaired 6 | . 6 . Time 156 | . 156 . Parts Recycled . | . . . Recycled Matter 156 | . 156 . Retrieved Matter . | . . . Retrieved Components 3 | . 3 . Parts Scanalyzed . | . . . Part Schematics Acquired . | . . . Parts Damaged . | . . . Bothacking | -11 -10 -10 ------------ Run | Scr Mat Min Used RIF Installer . | . . . Robots Hacked . | . . . Non-combat . | . . . Combat . | . . . Robot Hacks Applied . | . . . Relay Couplers Released . | . . . Robots Rewired . | . . . Allies Hacked . | . . . Hacks Repelled . | . . . Allies | -11 -10 -10 -------- Run | Scr Mat Min Total Allies 1 | . 1 . Largest Group 1 | . 1 1 Highest-Rated Group 10 | . 10 10 Highest-Rated Ally 10 | . 10 10 Total Orders . | . . . Ally Attacks . | . . . Total Damage . | . . . Kills . | . . . Allies Corrupted . | . . . Allies Melted . | . . . Intel | -11 -10 -10 ------- Run | Scr Mat Min Robot Analysis Total 5 | . 5 . Derelict Logs Recovered . | . . . Drone Launches . | . . . Drone Recoveries . | . . . Exploration | -11 -10 -10 ------------- Run | Scr Mat Min Turns Passed 2027 | 32 1554 441 Spaces Moved 840 | 17 615 208 Core . | . . . Treads 776 | . 568 208 Legs . | . . . Wheels 64 | 17 47 . Hover . | . . . Flight . | . . . Fastest Speed 100 | 100 100 180 Average Speed 163 | 100 160 180 Slowest Speed 180 | 100 180 180 Overloaded Moves . | . . . Propulsion Burnouts . | . . . Robots Hopped . | . . . Cave-ins Triggered . | . . . Exploration Rate (%) 48 | 3 98 44 Regions Visited 2 Branch Regions 1 Pre-discovered Areas . | . . . Known Exits Taken 1 | . 1 . Unknown Exits Taken 1 | 1 . . Scrap Searched 1 | . . 1 Spaces Dug 3 | . 3 . Terrain Destroyed 7 | . 7 . Melee . | . . . Projectile 7 | . 7 . AOE . | . . . Terrain Rammed . | . . . Walls Destroyed . | . . . Machines Disabled . | . . . Actions | -11 -10 -10 --------- Run | Scr Mat Min Total 1279 | 26 1013 240 Wait 234 | . 232 2 Move 838 | 16 614 208 Hop . | . . . Pick Up 33 | 2 31 . Fast Attach 13 | 1 12 . Attach 12 | 2 3 7 Detach 3 | . 3 . Swap 10 | . 10 . Drop 26 | 2 23 1 Fire 108 | 3 83 22 Melee . | . . . Ram . | . . . Kick . | . . . Crush 2 | . 2 . Escape Stasis . | . . . Rewire . | . . . Trap . | . . . Miscellaneous . | . . . Route ------- -11/Scrapyard -10/Materials (discovered 4 exits: [*Mat x3] / *Min) -10/Mines (discovered 1 exit: [*Mat]) History --------- Turn | Location | Event 13 | -11/Scrapyard | Discovered new exit (range 3) 33 | -11/Scrapyard | Entered Materials 317 | -10/Materials | Build established: Mutant 355 | -10/Materials | Discovered new exit (range 8) 432 | -10/Materials | Discovered new exit (range 6) 572 | -10/Materials | Discovered new exit (range 16) 758 | -10/Materials | Repaired Lgt. Treads 786 | -10/Materials | Repaired Propulsion Shielding 813 | -10/Materials | Repaired Lgt. Treads 840 | -10/Materials | Repaired Assault Rifle 868 | -10/Materials | Repaired Sensor Array 894 | -10/Materials | Repaired Lgt. Assault Rifle 1015 | -10/Materials | Identified exit to Mines 1093 | -10/Materials | Discovered new exit (range 13) 1587 | -10/Materials | Entered Mines 1587 | -10/Mines | Accompanied by 1 ally 1599 | -10/Mines | Met a Derelict bent on vengeance 1630 | -10/Mines | Discovered new exit (range 3) 1935 | -10/Mines | Assembled infested the area 2004 | -10/Mines | Core integrity fell below 50% 2020 | -10/Mines | Core integrity fell below 20% 2028 | -10/Mines | Destroyed by D-53 Grenadier with Mini Grenade Launcher Last Messages --------------- 02014_ U-05 Engineer lays Concrete. 02015_ The unstable cave ceiling collapses. 02015_ U-05 Engineer lays Concrete. 02016_ The unstable cave ceiling collapses. 02016_ U-05 Engineer lays Concrete. 02016_ Assault Rifle destroyed. 02017_ K-01 Serf collects debris. 02018_ The unstable cave ceiling collapses. 02018_ U-05 Engineer lays Concrete. 02019_ Dropped Lrg. Storage Unit. 02020_ U-05 Engineer lays Concrete. 02021_ The unstable cave ceiling collapses. 02021_ System corrupted: Autogun targeting data glitched. 02022_ U-05 Engineer lays Concrete. 02022_ K-01 Serf collects debris. 02023_ The unstable cave ceiling collapses. 02023_ U-05 Engineer lays Concrete. 02024_ The unstable cave ceiling collapses. 02024_ U-05 Engineer lays Concrete. 02026_ The unstable cave ceiling collapses. Map ----- +----------------------------------------------------+ | ????????? ????????????? ??????# #???????????? | | ????????? ????????????? ??????# #???????????? | | ????????? ????????????? ???????# #????????????? | | ????????# #???????????? ???????# ##????????????? | | ????????# #???????????? ???????# #?????????????? | | ????????# #???????????? #????### #?????????????? | | ????????# #???????????? #????# #?????????????? | | ????????# #???????????? #????# #?????????????? | | ????????# #???????????? #????# ###?????????????? | | ????????# #????????????# #?#### #???????????????? | | ?######## ########?????# #?# #???????????????? | | *%! #?????# #?# ## #???????????????? | | ?############### ####### ###!## #???????????????? | | ???????????????# [=%!* %%]## #???????????????? | | ???????????????####### ######## ##??????????????? | | ?????????????????????# #??????# ###????????????? | | ?????????????????????# #??????# ##???????????? | | ?????????????????????# #?????## #???????????? | | ?????????????????????# #???## #???????????? | | ?????????????????????#r#### ##?????#?????? | | ???????????????????### #?????## ????? | | ????????###????????# # #????## ????? | | ???????## ####????# d = ##???? ???? | | ???????# ##### # # =%% #????? ??? | | ???????# # * # #?????? ?? | | ????????# !! @ d #??????? ? | | ?????????# !! # # #????????# | | ?????????# !! # # ##????????# | | ??????????# ! # ## ##???????# | | ???????????# ## ### ####????### | | ????????????# #### #?## % ##?????? | | ????????????### #??# #??#### | | ??????????????## #??# ##??# | | ???????????????### ##?# ###???# ## | | ?????????????????## #?# ## #?????# #? | | ?????????????????## ######## #???### #? | | ????????????????## # #?????# ##### ## | | ???????????????## ## # #????# # | | ?????????####?## ### ## #???## ### # # | | ????????## ### ###?# #?#####??## ###%## # | | ???????## ##???# #????????# ## | | ??????## ##????# ###??????# #### | | ??????# ##?????# #??????## #??# | | ?????# ##??????### #??????## < ??# | | ?????# #####?????????? ##???????# #?# | | ?????## ##???????????????#????????# ##? | | ??????## #??????????????????????????####?# | | ???????###????????????????????????????????## | | ???????????????????????????????????????????## | | ????????????????????????????????????????????###### | +----------------------------------------------------+ Best States ------------- Heat Dissipation 25 Energy Generation 14 Energy Capacity 250 Matter Stores 300 Matter Capacity 300 Sight Range 16 Terrain Scan Range 16 Terrain Scan Density 10 Propulsion Shielding 33 Evasion (%) 40 Recoil Reduction 2 Item Schematics ----------------- Hcp. Storage Unit | -10/Materials | Hacked Hcp. Matter Pod | -10/Materials | Hacked Hcp. Battery | -10/Materials | Hacked Robot Schematics ------------------ None Fabricated ------------ Nothing Alien Tech Used ----------------- None Achievements -------------- None Challenges ------------ None Game ------ Seed ProtonCoolingDetonator Manual? 0 Play Time 00:23:50 Cumulative 112.6 hours Start 2020.12.13 @ 09:30:38 End 2020.12.13 @ 09:52:13 Sessions 1 Manual Loads 0 Difficulty Rogue Special Mode None Game No. 105 Rogue 105 Adventurer 0 Explorer 0 Win Type - Total 0 Types 0/0/0/0/0/0/0/0/0 Lore% 49 Gallery% 58 Achievement% 52 Wizard Run 0 Options --------- ASCII 0 Keyboard 1 Movement Numpad Keybinds 0 Fullscreen 1 Font 12/Terminus Map View 83x54 Tactical HUD 1 Map Filters NONE Filters NONE Steam 1 RUN: 2e12830e-4907-4e12-9e20-aa569b701206